bitfinex/quotes_BTCUSD_20241002
["timestamp","ask_amount","ask_price","bid_price","bid_amount"]
[1727907761377,0.001634,60666.0,60657.0,0.164861]
[1727907761629,0.001634,60666.0,60660.0,0.41108262]
[1727907761630,0.164843,60664.0,60660.0,0.41108262]
[1727907761886,0.164843,60664.0,60660.0,0.164852]
[1727907762137,0.0079845,60663.0,60660.0,0.164852]
[1727907763520,0.0079845,60663.0,60658.0,0.329714]
[1727907763777,0.164852,60661.0,60658.0,0.023]
[1727907763989,0.164848,60662.0,60660.0,0.025]
[1727907764509,0.164848,60662.0,60658.0,0.187856]
[1727907764818,0.165845,60663.0,60659.0,0.164854]
[1727907764857,0.001,60663.0,60659.0,0.164854]
[1727907765049,0.165846,60663.0,60659.0,0.164854]
[1727907765247,0.165846,60663.0,60660.0,0.014]
[1727907765463,0.329683,60665.0,60660.0,0.014]
[1727907765464,0.329687,60664.0,60660.0,0.014]
[1727907765683,0.16485,60661.0,60660.0,0.014]
[1727907765904,0.329687,60664.0,60660.0,0.014]
[1727907765905,0.164848,60662.0,60660.0,0.014]
[1727907766365,0.164841,60665.0,60661.0,0.164849]
[1727907766573,0.164842,60664.0,60659.0,0.023]
[1727907766803,0.16484,60665.0,60661.0,0.164849]
[1727907767002,0.164842,60664.0,60661.0,0.164849]
[1727907767203,0.164842,60664.0,60659.0,0.187853]
[1727907767426,0.164842,60664.0,60661.0,0.012]
[1727907767427,0.001,60662.0,60661.0,0.012]
[1727907767876,0.164842,60664.0,60661.0,0.012]
[1727907768081,0.164842,60664.0,60662.0,0.164847]
[1727907768082,0.001,60664.0,60662.0,0.164847]
[1727907768287,0.001,60664.0,60663.0,0.164845]
[1727907768498,0.001,60664.0,60663.0,0.268845]
[1727907769355,0.001634,60666.0,60665.0,0.164839]
[1727907769556,0.001634,60666.0,60665.0,0.187839]
[1727907770844,0.001634,60666.0,60665.0,0.198839]
[1727907771552,0.02747219,60666.0,60665.0,0.198839]
[1727907771772,0.02847219,60666.0,60665.0,0.208839]
[1727907773486,0.02847219,60666.0,60665.0,0.37402571]
[1727907773733,0.002634,60666.0,60665.0,0.54642571]
[1727907774204,0.001634,60666.0,60665.0,0.53642571]
[1727907774459,0.001634,60666.0,60665.0,0.52542571]
[1727907774709,0.002634,60666.0,60665.0,0.54942571]
[1727907775199,0.001634,60666.0,60665.0,0.53942571]
[1727907775462,0.002634,60666.0,60665.0,0.55542571]
[1727907780582,0.002634,60666.0,60665.0,0.55342571]
[1727907782197,0.002634,60666.0,60665.0,0.55542571]
[1727907782936,0.025837,60671.0,60670.0,0.023]
[1727907783175,0.001636,60680.0,60679.0,0.367601]
[1727907783399,0.001636,60680.0,60679.0,0.71898518]
[1727907784141,0.001636,60680.0,60679.0,0.72398518]
[1727907784361,0.001634,60688.0,60687.0,0.54807647]
[1727907784615,0.001634,60688.0,60687.0,0.71126318]
[1727907786939,0.001634,60688.0,60687.0,0.83026318]
[1727907787412,0.001634,60688.0,60687.0,1.15982318]
[1727907787905,0.001634,60688.0,60687.0,1.17382318]
[1727907788127,0.001634,60688.0,60687.0,1.15982318]
[1727907788356,0.001634,60688.0,60687.0,1.17382318]
[1727907789087,0.001634,60688.0,60687.0,0.87862571]
[1727907789310,0.001634,60688.0,60687.0,1.17182318]
[1727907789774,0.001634,60688.0,60687.0,1.15782318]
[1727907790002,0.001634,60688.0,60687.0,1.18582318]
[1727907790229,0.001634,60688.0,60687.0,1.15782318]
[1727907790478,0.001634,60688.0,60687.0,1.05282318]
[1727907790706,0.001634,60688.0,60687.0,0.84162571]
[1727907790940,0.001634,60688.0,60687.0,0.68552571]
[1727907791171,0.001634,60688.0,60687.0,0.67152571]
[1727907791409,0.166411,60688.0,60687.0,0.32956]
[1727907791664,0.001634,60688.0,60687.0,0.35756]
[1727907791915,0.166411,60688.0,60687.0,0.35756]
[1727907792129,0.001634,60688.0,60687.0,0.35756]
[1727907792396,0.166411,60688.0,60687.0,0.35756]
[1727907793355,0.166411,60688.0,60687.0,0.37156]
[1727907793578,0.166411,60688.0,60687.0,0.32956]
[1727907793809,0.166411,60688.0,60687.0,0.34856]
[1727907794068,0.19224172,60688.0,60687.0,0.34856]
[1727907794278,0.001634,60688.0,60687.0,0.503339]
[1727907794538,0.001634,60688.0,60687.0,0.511339]
[1727907794791,0.001634,60688.0,60687.0,0.34656]
[1727907795007,0.166411,60688.0,60687.0,0.32956]
[1727907795845,0.166411,60688.0,60687.0,0.34056]
[1727907795853,0.242811,60688.0,60687.0,0.34056]
[1727907796106,0.342811,60688.0,60687.0,0.34056]
[1727907796620,0.342811,60688.0,60687.0,0.35356]
[1727907796876,0.342811,60688.0,60687.0,0.34056]
[1727907797392,0.342811,60688.0,60687.0,0.32956]
[1727907797656,0.19224536,60688.0,60687.0,0.33756]
[1727907798159,0.19224536,60688.0,60687.0,0.32956]
[1727907798433,0.29224536,60688.0,60687.0,0.32956]
[1727907798681,0.408811,60688.0,60687.0,0.33056]
[1727907798929,0.408811,60688.0,60687.0,0.32956]
[1727907799440,0.343111,60688.0,60687.0,0.26386]
[1727907799948,0.342111,60688.0,60687.0,0.26286]
[1727907800181,0.343111,60688.0,60687.0,0.26286]
[1727907800411,0.342111,60688.0,60687.0,0.26286]
[1727907800684,0.54674953,60688.0,60687.0,0.26386]
[1727907800936,0.54574953,60688.0,60687.0,0.26286]
[1727907801174,0.57158603,60688.0,60687.0,0.26286]
[1727907801454,0.57158603,60688.0,60687.0,0.26486]
[1727907801455,0.57258603,60688.0,60687.0,0.26486]
[1727907801690,0.69476571,60688.0,60687.0,0.26486]
[1727907801935,0.69476571,60688.0,60687.0,0.26386]
[1727907802169,0.81797271,60688.0,60687.0,0.26486]
[1727907802647,0.81697271,60688.0,60687.0,0.26386]
[1727907802908,0.82697271,60688.0,60687.0,0.26486]
[1727907803159,0.70376571,60688.0,60687.0,0.26486]
[1727907803394,0.70361911,60688.0,60687.0,0.26486]
[1727907803635,0.002,60683.0,60672.0,0.24623062]
[1727907803900,1.33089124,60688.0,60672.0,0.24623062]
[1727907803901,0.45301447,60673.0,60672.0,0.24623062]
[1727907804437,0.264817,60673.0,60672.0,0.24623062]
[1727907804672,0.18819747,60677.0,60673.0,0.164816]
[1727907804673,0.164808,60677.0,60673.0,0.164816]
[1727907804946,0.164836,60667.0,60665.0,0.000817]
[1727907805199,0.18819747,60673.0,60671.0,0.24623062]
[1727907805200,0.16482,60672.0,60671.0,0.24623062]
[1727907805415,0.164826,60671.0,60666.0,0.164836]
[1727907805712,0.329649,60671.0,60665.0,0.165655]
[1727907805953,0.164836,60666.0,60665.0,0.000817]
[1727907807161,0.19067748,60666.0,60665.0,0.000817]
[1727907807661,0.19167748,60666.0,60665.0,0.000817]
[1727907808171,0.19167748,60666.0,60665.0,0.002817]
[1727907808632,0.19167748,60666.0,60665.0,0.000817]
[1727907808876,0.19067748,60666.0,60665.0,0.000817]
[1727907811075,0.29067748,60666.0,60665.0,0.000817]
[1727907811315,0.50132094,60666.0,60665.0,0.000817]
[1727907811549,0.85239633,60666.0,60665.0,0.000817]
[1727907811792,0.80354194,60666.0,60665.0,0.000817]
[1727907812054,0.80454194,60666.0,60665.0,0.000817]
[1727907812314,0.67609848,60666.0,60665.0,0.000817]
[1727907812575,0.42267102,60666.0,60665.0,0.000817]
[1727907812805,0.35447102,60666.0,60665.0,0.000817]
[1727907813084,0.6149081,60666.0,60665.0,0.000817]
[1727907813362,0.84587048,60666.0,60665.0,0.000817]
[1727907813622,0.86287048,60666.0,60665.0,0.001817]
[1727907813868,0.38467748,60666.0,60665.0,0.001817]
[1727907814121,0.365836,60666.0,60665.0,0.000817]
[1727907814625,0.41760277,60666.0,60665.0,0.001817]
[1727907815103,0.41460277,60666.0,60665.0,0.000817]
[1727907815337,0.62452677,60666.0,60665.0,0.001817]
[1727907815569,0.164866,60655.0,60654.0,0.24623062]
[1727907815801,0.45306347,60655.0,60654.0,0.24623062]
[1727907816031,0.45306347,60655.0,60652.0,0.000817]
[1727907816032,0.164872,60653.0,60652.0,0.000817]
[1727907817314,0.19272039,60653.0,60652.0,0.000817]
[1727907818040,0.19572039,60653.0,60652.0,0.000817]
[1727907818553,0.166872,60653.0,60652.0,0.000817]
[1727907819029,0.164872,60653.0,60652.0,0.000817]
[1727907821474,0.1907196,60653.0,60652.0,0.173117]
[1727907821729,0.0258476,60653.0,60652.0,0.173117]
[1727907822911,0.0258476,60653.0,60652.0,0.52618947]
[1727907823150,0.0258476,60653.0,60652.0,0.54918947]
[1727907823396,0.0278476,60653.0,60652.0,0.204117]
[1727907823643,0.0278476,60653.0,60652.0,0.368992]
[1727907824159,0.0278476,60653.0,60652.0,0.181117]
[1727907824160,0.166872,60653.0,60652.0,0.181117]
[1727907824859,0.166872,60653.0,60652.0,0.103117]
[1727907825101,0.166872,60653.0,60652.0,0.008817]
[1727907827301,0.19271856,60653.0,60652.0,0.008817]
[1727907828466,0.166872,60653.0,60652.0,0.008817]
[1727907831635,0.19272008,60653.0,60652.0,0.008817]
[1727907832098,0.19172008,60653.0,60652.0,0.008817]
[1727907832329,0.19072008,60653.0,60652.0,0.000817]
[1727907832568,0.19172008,60653.0,60652.0,0.000817]
[1727907833515,0.29372008,60653.0,60652.0,0.000817]
[1727907833952,0.267872,60653.0,60652.0,0.000817]
[1727907837323,0.29372254,60653.0,60652.0,0.000817]
[1727907838569,0.267872,60653.0,60652.0,0.000817]
[1727907841550,0.29372167,60653.0,60652.0,0.000817]
[1727907842762,0.36706281,60653.0,60652.0,0.000817]
[1727907843017,0.74160349,60653.0,60652.0,0.000817]
[1727907843254,0.61936825,60653.0,60652.0,0.000817]
[1727907843973,0.59351858,60653.0,60652.0,0.000817]
[1727907844222,0.7157967,60653.0,60652.0,0.000817]
[1727907844462,0.59351858,60653.0,60652.0,0.000817]
[1727907844948,0.59151858,60653.0,60652.0,0.000817]
[1727907845244,0.60051858,60653.0,60652.0,0.001817]
[1727907845703,0.59051858,60653.0,60652.0,0.000817]
[1727907845947,0.59951858,60653.0,60652.0,0.001817]
[1727907846435,0.60639069,60653.0,60652.0,0.001817]
[1727907846713,0.60839069,60653.0,60652.0,0.001817]
[1727907846984,0.61739069,60653.0,60652.0,0.001817]
[1727907847214,1.84565913,60653.0,60652.0,0.001817]
[1727907847451,1.87151087,60653.0,60652.0,0.001817]
[1727907847686,1.69740287,60653.0,60652.0,0.001817]
[1727907847920,1.49757387,60653.0,60652.0,0.001817]
[1727907848160,0.79005587,60653.0,60652.0,0.001817]
[1727907848425,0.71195587,60653.0,60652.0,0.001817]
[1727907848688,0.56514243,60653.0,60652.0,0.001817]
[1727907851373,0.72110426,60653.0,60652.0,0.001817]
[1727907851613,0.8471515,60653.0,60652.0,0.001817]
[1727907851842,1.56814769,60653.0,60652.0,0.001817]
[1727907852085,1.56814769,60653.0,60641.0,0.24623062]
[1727907852086,0.002,60649.0,60641.0,0.24623062]
[1727907852318,0.57571168,60642.0,60641.0,0.24623062]
[1727907852553,0.65383083,60642.0,60641.0,0.24623062]
[1727907852843,0.164915,60637.0,60636.0,0.0914]
[1727907853092,0.23849175,60637.0,60636.0,0.0914]
[1727907853337,0.1,60636.0,60631.0,0.000817]
[1727907853567,0.52668676,60632.0,60631.0,0.000817]
[1727907853804,0.75184046,60632.0,60631.0,0.000817]
[1727907854286,0.45312647,60632.0,60631.0,0.000817]
[1727907854535,0.56319556,60632.0,60631.0,0.000817]
[1727907854776,0.31397268,60632.0,60631.0,0.000817]
[1727907855012,0.33849342,60632.0,60631.0,0.000817]
[1727907855269,0.264929,60632.0,60631.0,0.000817]
[1727907855516,0.33847905,60632.0,60631.0,0.000817]
[1727907856001,0.56317199,60632.0,60631.0,0.000817]
[1727907856236,0.46510525,60632.0,60631.0,0.000817]
[1727907856469,0.46510525,60632.0,60631.0,0.002817]
[1727907856766,0.589029,60632.0,60631.0,0.002817]
[1727907858214,0.58902785,60632.0,60631.0,0.002817]
[1727907858451,0.56315403,60632.0,60631.0,0.002817]
[1727907858686,0.46510525,60632.0,60631.0,0.002817]
[1727907859204,0.164929,60632.0,60631.0,0.002817]
[1727907859443,0.04900503,60632.0,60631.0,0.002817]
[1727907859686,0.329845,60635.0,60631.0,0.173517]
[1727907859687,0.329854,60633.0,60631.0,0.173517]
[1727907859937,0.164929,60632.0,60631.0,0.173517]
[1727907860488,0.329828,60638.0,60631.0,0.173517]
[1727907860723,0.14898764,60640.0,60631.0,0.173517]
[1727907860948,0.14898764,60640.0,60632.0,0.0914]
[1727907860949,0.04898764,60639.0,60632.0,0.0914]
[1727907861183,0.1,60640.0,60632.0,0.0914]
[1727907861184,0.164919,60636.0,60632.0,0.256327]
[1727907861437,0.329827,60638.0,60633.0,0.335625]
[1727907861438,0.164917,60637.0,60633.0,0.335625]
[1727907861671,0.164919,60636.0,60633.0,0.1707]
[1727907862153,0.164923,60635.0,60633.0,0.1707]
[1727907862896,0.164923,60635.0,60633.0,0.1787]
[1727907863147,0.164923,60634.0,60633.0,0.1847]
[1727907863399,0.164923,60634.0,60633.0,0.1707]
[1727907863633,0.164923,60634.0,60633.0,0.1767]
[1727907863874,0.164923,60634.0,60633.0,0.1847]
[1727907864652,0.164923,60634.0,60633.0,0.1787]
[1727907865118,0.164923,60634.0,60633.0,0.1707]
[1727907865355,0.165923,60634.0,60633.0,0.1767]
[1727907865874,0.166923,60634.0,60633.0,0.1797]
[1727907866571,0.002,60634.0,60633.0,0.1797]
[1727907866815,0.002,60634.0,60633.0,0.344626]
[1727907867280,0.0278528,60634.0,60633.0,0.1797]
[1727907867516,0.002,60634.0,60633.0,0.1797]
[1727907868244,0.166923,60634.0,60633.0,0.1797]
[1727907869227,0.266923,60634.0,60633.0,0.1004]
[1727907869490,0.31591064,60634.0,60633.0,0.009]
[1727907869740,0.34040446,60634.0,60633.0,0.009]
[1727907870442,0.36626028,60634.0,60633.0,0.009]
[1727907870675,0.29177882,60634.0,60633.0,0.006]
[1727907870932,0.29277882,60634.0,60633.0,0.009]
[1727907871415,0.62621953,60634.0,60633.0,0.009]
[1727907871962,0.62321953,60634.0,60633.0,0.003]
[1727907872209,0.62321953,60634.0,60633.0,0.007]
[1727907872464,0.62321953,60634.0,60631.0,0.000817]
[1727907872465,0.002,60632.0,60631.0,0.000817]
[1727907872704,0.65298402,60632.0,60631.0,0.000817]
[1727907872943,1.14639373,60632.0,60631.0,0.000817]
[1727907873214,0.98109246,60632.0,60631.0,0.000817]
[1727907873452,1.14639373,60632.0,60631.0,0.000817]
[1727907873687,1.46608273,60632.0,60631.0,0.000817]
[1727907873953,1.47508273,60632.0,60631.0,0.000817]
[1727907874208,1.24124046,60632.0,60631.0,0.000817]
[1727907874499,1.41543788,60632.0,60631.0,0.000817]
[1727907874757,1.24770654,60632.0,60631.0,0.000817]
[1727907875009,1.23870654,60632.0,60631.0,0.000817]
[1727907875244,0.16497,60617.0,60616.0,0.24623062]
[1727907875485,0.5265679,60617.0,60616.0,0.24623062]
[1727907875778,0.5265679,60617.0,60609.0,0.1717]
[1727907875779,0.264989,60610.0,60609.0,0.0927]
[1727907876994,0.264989,60610.0,60604.0,0.000816]
[1727907876995,0.165002,60605.0,60604.0,0.000816]
[1727907877269,0.35319947,60605.0,60604.0,0.000816]
[1727907877788,0.37906727,60605.0,60604.0,0.000816]
[1727907878067,0.47906727,60605.0,60604.0,0.000816]
[1727907878609,0.52797736,60605.0,60604.0,0.000816]
[1727907879094,0.47906727,60605.0,60604.0,0.000816]
[1727907879808,0.48406727,60605.0,60604.0,0.000816]
[1727907880042,0.53089362,60605.0,60604.0,0.000816]
[1727907880294,0.48406727,60605.0,60604.0,0.000816]
[1727907881044,0.48306727,60605.0,60604.0,0.000816]
[1727907881292,0.48606727,60605.0,60604.0,0.000816]
[1727907881545,0.48306727,60605.0,60604.0,0.000816]
[1727907882051,0.48606727,60605.0,60604.0,0.000816]
[1727907882560,0.2948698,60605.0,60604.0,0.000816]
[1727907882792,0.2908698,60605.0,60604.0,0.000816]
[1727907883035,0.2908698,60605.0,60604.0,0.167416]
[1727907883036,0.0298678,60605.0,60604.0,0.167416]
[1727907883265,0.1948698,60605.0,60604.0,0.167416]
[1727907883758,0.0298678,60605.0,60604.0,0.167416]
[1727907884009,0.1918698,60605.0,60604.0,0.167416]
[1727907884477,0.0268678,60605.0,60604.0,0.167416]
[1727907885009,0.1918698,60605.0,60604.0,0.167416]
[1727907885985,0.1908698,60605.0,60604.0,0.167416]
[1727907886228,0.0268678,60605.0,60604.0,0.167416]
[1727907886487,0.1918698,60605.0,60604.0,0.167416]
[1727907886740,0.0258678,60605.0,60604.0,0.167416]
[1727907887007,0.1918698,60605.0,60604.0,0.167416]
[1727907887510,0.1928698,60605.0,60604.0,0.167416]
[1727907887997,0.1938698,60605.0,60604.0,0.167416]
[1727907888519,0.1928698,60605.0,60604.0,0.167416]
[1727907888803,0.62529789,60605.0,60604.0,0.090816]
[1727907889009,0.62529789,60605.0,60604.0,0.000816]
[1727907889010,0.48006727,60605.0,60604.0,0.000816]
[1727907889770,0.45419947,60605.0,60604.0,0.000816]
[1727907890307,0.45519947,60605.0,60604.0,0.000816]
[1727907890839,0.45319947,60605.0,60604.0,0.000816]
[1727907891127,0.45519947,60605.0,60604.0,0.000816]
[1727907891366,0.45319947,60605.0,60604.0,0.000816]
[1727907891870,0.45419947,60605.0,60604.0,0.000816]
[1727907892399,0.59068951,60605.0,60604.0,0.000816]
[1727907892627,0.60268951,60605.0,60604.0,0.000816]
[1727907892880,0.49107066,60605.0,60604.0,0.000816]
[1727907893110,0.49807066,60605.0,60604.0,0.000816]
[1727907893345,0.49107066,60605.0,60604.0,0.000816]
[1727907893612,0.50407066,60605.0,60604.0,0.000816]
[1727907893844,0.49207066,60605.0,60604.0,0.000816]
[1727907894086,0.45319947,60605.0,60604.0,0.000816]
[1727907894323,0.47119947,60605.0,60604.0,0.000816]
[1727907895016,0.46419947,60605.0,60604.0,0.000816]
[1727907895266,0.47519947,60605.0,60604.0,0.000816]
[1727907897283,0.50107006,60605.0,60604.0,0.000816]
[1727907897766,0.31287259,60605.0,60604.0,0.000816]
[1727907898011,0.20187259,60605.0,60604.0,0.000816]
[1727907898249,0.176002,60605.0,60604.0,0.000816]
[1727907898979,0.187002,60605.0,60604.0,0.000816]
[1727907899223,0.176002,60605.0,60604.0,0.000816]
[1727907899712,0.45319947,60605.0,60604.0,0.000816]
[1727907900918,1.0822129,60605.0,60604.0,0.000816]
[1727907901150,0.84767239,60605.0,60604.0,0.000816]
[1727907901421,0.002,60598.0,60591.0,0.000816]
[1727907901670,0.64979147,60597.0,60593.0,0.24704762]
[1727907901907,0.59119147,60597.0,60593.0,0.24704762]
[1727907902151,0.59319147,60597.0,60593.0,0.000817]
[1727907902700,0.6190686,60597.0,60593.0,0.000817]
[1727907903388,0.267032,60594.0,60593.0,0.000817]
[1727907903628,2.304361,60594.0,60593.0,0.000817]
[1727907904526,2.312361,60594.0,60593.0,0.000817]
[1727907905252,0.285032,60594.0,60593.0,0.000817]
[1727907905495,0.275032,60594.0,60593.0,0.000817]
[1727907905731,0.287032,60594.0,60593.0,0.000817]
[1727907905975,0.275032,60594.0,60593.0,0.000817]
[1727907906233,0.265032,60594.0,60593.0,0.000817]
[1727907906482,0.284032,60594.0,60593.0,0.000817]
[1727907906963,0.299909,60594.0,60593.0,0.000817]
[1727907907199,0.308909,60594.0,60593.0,0.000817]
[1727907908194,0.52926262,60594.0,60593.0,0.000817]
[1727907908441,0.52926262,60594.0,60591.0,0.000816]
[1727907908442,0.45323547,60592.0,60591.0,0.000816]
[1727907908684,0.94438447,60592.0,60591.0,0.000816]
[1727907908910,0.90030347,60592.0,60591.0,0.000816]
[1727907909183,0.57649047,60592.0,60591.0,0.000816]
[1727907909410,0.57849047,60592.0,60591.0,0.000816]
[1727907909653,0.46323547,60592.0,60591.0,0.000816]
[1727907910215,0.45323547,60592.0,60591.0,0.000816]
[1727907910510,0.46423547,60592.0,60591.0,0.000816]
[1727907911271,0.50011176,60592.0,60591.0,0.000816]
[1727907912267,0.48911176,60592.0,60591.0,0.000816]
[1727907912518,0.49911176,60592.0,60591.0,0.000816]
[1727907913056,0.49611176,60592.0,60591.0,0.000816]
[1727907913296,0.50311176,60592.0,60591.0,0.000816]
[1727907913998,0.47723547,60592.0,60591.0,0.000816]
[1727907914234,0.289038,60592.0,60591.0,0.178016]
[1727907914489,0.189038,60592.0,60591.0,0.178016]
[1727907914716,0.024,60592.0,60591.0,0.178016]
[1727907914970,0.189038,60592.0,60591.0,0.178016]
[1727907915204,0.001634,60600.0,60592.0,0.0967]
[1727907915442,0.001634,60600.0,60597.0,0.342224]
[1727907915443,0.24623062,60598.0,60597.0,0.342224]
[1727907915679,0.001634,60600.0,60598.0,0.16502]
[1727907916173,0.001634,60600.0,60597.0,0.342222]
[1727907916407,0.001634,60600.0,60597.0,0.1772]
[1727907916706,0.001634,60600.0,60599.0,0.165019]
[1727907917180,0.002634,60600.0,60599.0,0.165019]
[1727907917432,0.429987,60609.0,60601.0,0.330023]
[1727907917696,0.429987,60609.0,60597.0,0.0805]
[1727907917697,0.41121362,60613.0,60608.0,0.164994]
[1727907917965,0.41121362,60613.0,60608.0,0.164993]
[1727907917966,0.164984,60612.0,60608.0,0.164993]
[1727907918209,0.164984,60612.0,60598.0,0.330043]
[1727907918210,0.41121262,60613.0,60609.0,0.344291]
[1727907918455,0.329936,60618.0,60610.0,0.329977]
[1727907918697,0.164973,60616.0,60612.0,0.164982]
[1727907918929,0.32993,60619.0,60609.0,0.1793]
[1727907919178,0.164977,60615.0,60610.0,0.164989]
[1727907919446,0.32993,60619.0,60610.0,0.57620562]
[1727907919447,0.329937,60618.0,60610.0,0.57620562]
[1727907919691,0.001,60613.0,60612.0,0.164982]
[1727907920177,0.001,60613.0,60612.0,0.006]
[1727907920415,0.1,60619.0,60610.0,0.329978]
[1727907920416,0.16497,60617.0,60610.0,0.329978]
[1727907920656,0.164973,60616.0,60611.0,0.164984]
[1727907920891,0.329946,60616.0,60610.0,0.005]
[1727907921148,0.494921,60616.0,60611.0,0.164986]
[1727907922135,0.494921,60616.0,60610.0,0.005]
[1727907922136,0.164977,60615.0,60610.0,0.005]
[1727907922375,0.001,60613.0,60612.0,0.009]
[1727907922625,0.164977,60615.0,60610.0,0.005]
[1727907922854,0.02586264,60613.0,60611.0,0.006]
[1727907923111,0.02586264,60613.0,60610.0,0.005]
[1727907923379,0.02586264,60613.0,60612.0,0.164983]
[1727907923613,0.02586264,60613.0,60610.0,0.007]
[1727907923843,0.02586264,60613.0,60610.0,0.171986]
[1727907924077,0.165976,60615.0,60610.0,0.171986]
[1727907924340,0.164976,60615.0,60610.0,0.164986]
[1727907924585,0.001,60613.0,60612.0,0.009]
[1727907925086,0.165981,60613.0,60612.0,0.009]
[1727907925349,0.166981,60613.0,60612.0,0.009]
[1727907925610,0.165981,60613.0,60612.0,0.009]
[1727907925863,0.166981,60613.0,60612.0,0.017]
[1727907926342,0.001,60613.0,60612.0,0.008]
[1727907927069,0.02686258,60613.0,60612.0,0.008]
[1727907927304,0.02686258,60613.0,60612.0,0.172983]
[1727907927569,0.02786258,60613.0,60612.0,0.181983]
[1727907928315,0.002,60613.0,60612.0,0.017]
[1727907928539,0.002,60613.0,60612.0,0.181983]
[1727907930570,0.003634,60613.0,60612.0,0.181983]
[1727907931347,0.02949639,60613.0,60612.0,0.181983]
[1727907934011,0.003634,60613.0,60612.0,0.181983]
[1727907937913,0.003634,60613.0,60612.0,0.356283]
[1727907939357,0.003634,60613.0,60612.0,0.1913]
[1727907940362,0.003634,60613.0,60612.0,0.356283]
[1727907942571,0.003634,60613.0,60612.0,0.1913]
[1727907943043,0.02949578,60613.0,60612.0,0.356283]
[1727907943536,0.329858,60632.0,60615.0,0.1676]
[1727907943537,0.1,60627.0,60615.0,0.1676]
[1727907943777,0.1,60627.0,60624.0,0.164949]
[1727907943778,0.264943,60627.0,60624.0,0.164949]
[1727907944053,0.264943,60627.0,60624.0,0.16495]
[1727907944054,0.1,60627.0,60624.0,0.16495]
[1727907944299,0.1,60627.0,60625.0,0.0762]
[1727907944548,0.329877,60629.0,60625.0,0.0762]
[1727907944549,0.164938,60629.0,60626.0,0.0944]
[1727907944780,0.001634,60631.0,60626.0,0.0944]
[1727907945015,0.166568,60631.0,60627.0,0.164942]
[1727907945511,0.164934,60630.0,60627.0,0.164942]
[1727907946264,0.001634,60631.0,60628.0,0.164938]
[1727907946265,0.168566,60631.0,60628.0,0.164938]
[1727907946498,0.168566,60631.0,60627.0,0.006]
[1727907946499,0.003634,60631.0,60627.0,0.006]
[1727907946705,0.001,60630.0,60628.0,0.164938]
[1727907946986,0.001,60630.0,60628.0,0.16494]
[1727907947230,0.001,60630.0,60629.0,0.164937]
[1727907948607,0.002634,60631.0,60629.0,0.164937]
[1727907948608,0.001634,60631.0,60630.0,0.164934]
[1727907948611,0.002634,60631.0,60630.0,0.164934]
[1727907948871,0.002634,60631.0,60630.0,0.52440213]
[1727907948872,0.003634,60631.0,60630.0,0.52440213]
[1727907949112,0.001634,60631.0,60630.0,0.335834]
[1727907950062,0.001634,60631.0,60630.0,0.342834]
[1727907950535,0.002634,60631.0,60630.0,0.349834]
[1727907959710,0.002634,60631.0,60630.0,0.53802071]
[1727907959954,0.001634,60634.0,60633.0,0.54769413]
[1727907960222,0.001634,60634.0,60633.0,0.336126]
[1727907961465,0.001634,60634.0,60633.0,0.68988084]
[1727907961702,0.001634,60634.0,60633.0,0.71288084]
[1727907962708,0.002634,60634.0,60633.0,0.74088084]
[1727907962950,0.24623062,60649.0,60633.0,0.74088084]
[1727907962951,0.24623062,60649.0,60648.0,0.164885]
[1727907963435,0.24623062,60649.0,60647.0,0.51834313]
[1727907963436,0.24623062,60656.0,60651.0,0.164877]
[1727907963928,0.02747917,60652.0,60651.0,0.164877]
[1727907964421,0.001634,60652.0,60651.0,0.164877]
[1727907965125,0.001634,60652.0,60651.0,0.177877]
[1727907965626,0.001634,60652.0,60651.0,0.164877]
[1727907965868,0.001634,60652.0,60651.0,0.192877]
[1727907966329,0.001634,60652.0,60651.0,0.269577]
[1727907966783,0.001634,60652.0,60651.0,0.272874]
[1727907968427,0.001634,60652.0,60651.0,0.269577]
[1727907969605,0.001634,60652.0,60651.0,0.1047]
[1727907969846,0.001634,60652.0,60651.0,0.028]
[1727907970106,0.35507713,60652.0,60651.0,0.028]
[1727907970588,0.45507713,60652.0,60651.0,0.028]
[1727907970823,0.48092468,60652.0,60651.0,0.028]
[1727907971071,0.48092468,60652.0,60651.0,0.014]
[1727907971315,0.48092468,60652.0,60651.0,0.02]
[1727907972055,0.48092468,60652.0,60651.0,0.006]
[1727907972293,0.164904,60641.0,60640.0,0.24623062]
[1727907972983,0.02585041,60641.0,60639.0,0.164908]
[1727907973225,0.02585041,60641.0,60640.0,0.164907]
[1727907974232,0.1,60650.0,60648.0,0.164885]
[1727907974233,0.34623062,60649.0,60648.0,0.164885]
[1727907974722,0.001634,60652.0,60650.0,0.164878]
[1727907974998,0.001634,60652.0,60641.0,0.329809]
[1727907975259,0.16489,60647.0,60643.0,0.164898]
[1727907975501,0.329773,60648.0,60643.0,0.164899]
[1727907975502,0.164891,60646.0,60643.0,0.164899]
[1727907975744,0.001634,60652.0,60640.0,0.247507]
[1727907975745,0.19020213,60652.0,60640.0,0.247507]
[1727907976014,0.164877,60651.0,60650.0,0.012]
[1727907976246,0.001634,60652.0,60648.0,0.014]
[1727907976477,0.164883,60649.0,60648.0,0.014]
[1727907977703,0.164882,60650.0,60644.0,0.32979]
[1727907977945,0.164882,60650.0,60643.0,0.338795]
[1727907978189,0.166509,60652.0,60648.0,0.164884]
[1727907978719,0.329756,60651.0,60648.0,0.014]
[1727907978981,0.264883,60649.0,60648.0,0.014]
[1727907979213,0.264883,60649.0,60648.0,0.007]
[1727907979443,0.1,60649.0,60648.0,0.004]
[1727907979676,0.264883,60649.0,60648.0,0.004]
[1727907979930,0.594651,60649.0,60648.0,0.008]
[1727907980895,0.594651,60649.0,60648.0,0.004]
[1727907981133,0.596283,60649.0,60648.0,0.007]
[1727907981375,0.596283,60649.0,60648.0,0.014]
[1727907981628,0.4314,60649.0,60641.0,0.24623062]